[Event "44th Chess Olympiad Open 2022"]
[Site "Chennai"]
[Date "2022.08.03"]
[Round "6.59"]
[White "Abdulkadir Mohamed Warsame"]
[Black "Hassan, Tarek Ahmed"]
[Result "1-0"]
[WhiteElo "1820"]
[BlackElo "2209"]
[Annotator "TA"]
[PlyCount "157"]
[EventDate "2022.??.??"]
[TimeControl "60"]

{[%evp 13,157,-32,-43,-32,-31,-23,96,0,0,0,-9,-35,-30,-50,189,188,368,358,388,
364,375,381,467,468,466,466,428,309,496,357,501,499,463,333,335,339,356,355,
354,357,352,349,371,373,376,267,269,277,269,270,302,248,237,210,315,254,254,
220,243,235,312,300,317,247,284,233,307,283,271,225,224,0,266,257,407,417,422,
403,391,389,362,270,239,142,779,764,756,731,723,680,845,800,620,478,3635,786,
2243,1059,961,0,1670,420,474,0,0,0,542,205,205,205,4153,4153,4153,4153,4153,
4153,4153,4153,4153,4153,4153,4153,4153,4153,4153,4153,4153,4153,4153,4153,
4149,4145,4145,4141,29985,29986,29986,29987,29994,29995,29995,29996,29996,
29997,29997,856]} 1. c4 {[%emt 0:00:04]} b6 {[%emt 0:00:37]} 2. Nc3 {[%emt 0:
00:00]} e6 {[%emt 0:00:19]} 3. e4 {[%emt 0:05:15]} Bb7 {[%emt 0:00:24]} 4. d4 {
[%emt 0:01:46]} Bb4 {[%emt 0:00:20]} 5. Bd3 {[%emt 0:02:03]} f5 {[%emt 0:01:43]
} 6. d5 {[%emt 0:13:27]} fxe4 {[%emt 0:03:00]} 7. Bxe4 {[%emt 0:00:38]} Qh4 {
[%emt 0:06:54]} 8. Qd3 {[%emt 0:10:32] A40: Unusual replies to 1 d4.} Nf6 {
[%emt 0:12:51]} 9. Bf3 {[%emt 0:01:00] g3 is the strong threat.} e5 {[%emt 0:
00:00] [#]} (9... Na6 $11) 10. Bd2 $146 {[%emt 0:14:03]} ({White should try} 
10. Qe2 $1 $16) ({Predecessor:} 10. g3 Qd4 11. Qxd4 exd4 12. a3 Bxc3+ 13. bxc3
dxc3 14. Bg5 O-O 15. Bxf6 Rxf6 16. Rc1 {0-1 (42) Fabrizio,G (1941)-Cristobal,M
(2287) Pinamar 2012}) 10... Na6 $11 {[%emt 0:05:01]} 11. g3 {[%emt 0:05:36]}
Nc5 {[%emt 0:01:05]} 12. Qe2 {[%emt 0:22:06]} (12. Qc2 $5 {[%cal Rg3h4]} Qd4
13. Be2 $15) 12... Qd4 {[%emt 0:00:47]} 13. O-O-O $1 {[%emt 0:01:43] And now
Be3 would win.} Nd3+ $2 {[%emt 0:31:58]} (13... Ba6 $1 $15 {stays ahead.} 14.
Bh6 Bxc4 $1 15. Rxd4 Bxe2 16. Bxg7 Bxf3 17. Nxf3 exd4 18. Bxh8 dxc3 19. Bxf6
cxb2+ 20. Kxb2 Ne4) 14. Kc2 $1 $18 {[%emt 0:01:29]} e4 {[%emt 0:05:25]} (14...
Nxf2 $2 15. Be3 Qxd1+ 16. Nxd1 $18) (14... Bxc3 15. Bxc3 Qxc4) 15. Bxe4 {
[%emt 0:07:45]} Nxe4 {[%emt 0:00:16]} 16. Nf3 {[%emt 0:00:32]} (16. Nxe4 Qxb2+
17. Kxd3 O-O $18) (16. Qxe4+ Qxe4 17. Nxe4 Bxd2 $16) 16... Qxc4 {[%emt 0:01:41]
} 17. b3 $1 {[%emt 0:01:35] Deflection. Dancing on a razor blade.} Qc5 {
[%emt 0:01:48]} (17... Ne1+ $2 18. Qxe1 Qc5 19. Qxe4+ $18) 18. Qxe4+ {[%emt 0:
00:00]} Kd8 {[%emt 0:00:30]} 19. Qxd3 {[%emt 0:01:15]} a5 {[%emt 0:00:41]} 20.
Be3 {[%emt 0:00:40]} Qf8 {[%emt 0:00:32]} (20... Qxc3+ {might work better.} 21.
Qxc3 Bxc3 22. Kxc3 Rf8) 21. Na4 {[%emt 0:02:07]} Ba6 {[%emt 0:01:46]} (21... b5
$142 22. Nc3 (22. Qxb5 $2 Ba6 $19) 22... Bxc3 23. Kxc3 Qa3) 22. Qe4 {[%emt 0:
00:00][%cal Yd5d6] Strongly threatening d6!} Qe8 {[%emt 0:03:13]} 23. Qxe8+ {
[%emt 0:01:49]} Rxe8 {[%emt 0:00:01]} 24. Nc3 {[%emt 0:00:39] Against Be2} d6 {
[%emt 0:02:31]} 25. Nd4 {[%emt 0:00:15][%cal Yf3d4,Yd4e6,Ye6f4]} Kd7 {[%emt 0:
01:20]} 26. Ne6 {[%emt 0:01:02]} Re7 {[%emt 0:00:39]} 27. h4 {[%emt 0:00:00]}
Bxc3 {[%emt 0:00:32]} 28. Kxc3 {[%emt 0:00:09]} Be2 {[%emt 0:00:07]} 29. Nf4 {
[%emt 0:02:53]} Bf3 {[%emt 0:00:32]} 30. Rhe1 {[%emt 0:00:12]} Bxd1 {[%emt 0:
00:28]} 31. Rxd1 {[%emt 0:00:01]} a4 {[%emt 0:00:35]} 32. Rd4 {[%emt 0:00:00]}
axb3 {[%emt 0:00:31]} 33. axb3 {[%emt 0:00:43]} Ra1 {[%emt 0:01:48]} (33... Re5
$142 34. Rd2 g6) 34. Ra4 {[%emt 0:01:34]} Rxa4 {[%emt 0:01:07]} 35. bxa4 {
[%emt 0:00:00]} Re4 {[%emt 0:00:32]} 36. Kb3 {[%emt 0:00:08]} c5 {[%emt 0:00:
52]} 37. dxc6+ {[%emt 0:01:14]} Kxc6 {[%emt 0:00:04]} 38. Ne2 {[%emt 0:00:31]}
Re5 {[%emt 0:03:26]} 39. Nc3 {[%emt 0:00:51]} Re8 {[%emt 0:00:00]} 40. Kc4 {
[%emt 0:00:09]} Ra8 {[%emt 0:00:39]} 41. Kb4 {[%emt 0:30:56]} Re8 {[%emt 0:30:
53]} 42. Kc4 {[%emt 0:00:50]} Ra8 {[%emt 0:02:38]} 43. g4 {[%emt 0:00:00]} Ra5
{[%emt 0:00:00]} (43... d5+ {was worth a try.} 44. Nxd5 Rxa4+ 45. Nb4+ Kd6) 44.
h5 {[%emt 0:00:00]} Ra8 {[%emt 0:00:00]} 45. f4 {[%emt 0:00:00]} g6 {[%emt 0:
00:00]} 46. hxg6 {[%emt 0:00:00]} hxg6 {[%emt 0:00:00]} 47. Kd4 {[%emt 0:00:00]
Against d5} Rh8 {[%emt 0:00:00]} 48. Nd5 {[%emt 0:00:00]} (48. g5 $18) 48...
Rh4 $2 {[%emt 0:00:00]} (48... Ra8 $16 49. Nc3 Rh8) 49. g5 {[%emt 0:00:00]} Rh7
{[%emt 0:00:00]} 50. Kc4 {[%emt 0:00:00]} Ra7 {[%emt 0:00:00]} 51. Nxb6 {
[%emt 0:00:00]} d5+ {[%emt 0:00:00]} 52. Kd3 {[%emt 0:00:00]} Rh7 {[%emt 0:00:
00]} 53. a5 {[%emt 0:00:00][%cal Yf4f5] aiming for f5!} Rh1 {[%emt 0:00:00]} (
53... Ra7 $142 54. f5 (54. Nxd5 Rd7 $11) 54... d4 55. Kxd4 gxf5) 54. Kd4 {
[%emt 0:00:00]} (54. f5 $142 d4 55. Bxd4 gxf5 56. a6 Rd1+ 57. Kc4 Rc1+ 58. Kb3)
54... Re1 {[%emt 0:00:00]} 55. Nc8 {[%emt 0:00:00]} (55. f5 $142 Rd1+ 56. Ke5)
55... Kd7 {[%emt 0:00:00] [#]} 56. Nb6+ {[%emt 0:00:00]} (56. f5 $142 $1) 56...
Kc6 $1 {[%emt 0:00:00]} 57. Na4 {[%emt 0:03:17]} (57. f5 $142) 57... Rd1+ {
[%emt 0:00:00] [#]} 58. Ke5 $2 {[%emt 0:01:37]} (58. Kc3 $1 $18) 58... Re1 $11
{[%emt 0:00:00]} 59. Kd4 {[%emt 0:00:02]} Ra1 $2 {[%emt 0:01:00] Black is on
the road to losing.} (59... Rd1+ $1 $11 {and Black stays safe.} 60. Kc3 Re1)
60. Nc3 $2 {[%emt 0:00:11]} (60. Nc5) 60... Rxa5 $18 {[%emt 0:00:15]} 61. Ke5 {
[%emt 0:00:31] Hoping for Bd4.} Ra3 $2 {[%emt 0:03:34]} (61... d4+ 62. Kxd4 Ra8
) 62. Bd4 {[%emt 0:00:02]} ({Weaker is} 62. Nxd5 Ra5 $11) 62... Ra8 {[%emt 0:
00:33]} 63. f5 {[%emt 0:02:33]} gxf5 {[%emt 0:01:13]} 64. Kxf5 {[%emt 0:00:25]}
Rf8+ {[%emt 0:00:25]} 65. Kg4 {[%emt 0:00:32]} Rb8 {[%emt 0:00:25]} 66. g6 {
[%emt 0:00:48]} Kd6 {[%emt 0:00:00]} 67. Kg5 {[%emt 0:00:57]} Ke6 {[%emt 0:00:
24]} 68. Ne2 {[%emt 0:00:27]} Kd6 {[%emt 0:03:49]} 69. g7 {[%emt 0:00:20]} Kc6
{[%emt 0:00:15]} 70. Kg6 {[%emt 0:00:00]} Kb5 {[%emt 0:00:04]} 71. Kh7 {
[%emt 0:00:34]} Kc4 {[%emt 0:00:15]} 72. Bf6 {[%emt 0:00:12]} Rb7 {[%emt 0:02:
50]} 73. Kh8 {[%emt 0:00:02]} Rb6 {[%emt 0:00:50] [#]} 74. g8=Q $1 {[%emt 0:00:
43] White mates.} Rxf6 {[%emt 0:00:00]} 75. Qg7 {[%emt 0:00:37]} Rf1 {[%emt 0:
01:02]} 76. Qc3+ {[%emt 0:00:07]} Kb5 {[%emt 0:00:13]} 77. Nd4+ {[%emt 0:00:15]
} Kb6 {[%emt 0:00:40]} 78. Qc6+ {[%emt 0:00:25]} Ka7 {[%emt 0:00:10]} 79. Nb5+
{[%emt 0:00:21] Weighted Error Value: White=0.32/Black=0.41} 1-0

[Event "44th Chess Olympiad Open 2022"]
[Site "Chennai"]
[Date "2022.08.03"]
[Round "6.60"]
[White "Michaelides, Konstantinos"]
[Black "Hinga, Githinji"]
[Result "1-0"]
[WhiteElo "2300"]
[BlackElo "1954"]
[Annotator "TA"]
[PlyCount "59"]
[EventDate "2022.??.??"]
[TimeControl "60"]

{[%evp 12,59,25,24,33,28,54,49,64,45,72,50,71,48,83,62,121,119,124,123,131,131,
305,235,433,429,461,456,485,450,487,468,435,461,445,471,476,497,462,503,572,
563,585,581,577,568,565,495,488,495]} 1. Nf3 {[%emt 0:00:10]} Nf6 {[%emt 0:00:
00]} 2. c4 {[%emt 0:00:21]} c5 {[%emt 0:00:34]} 3. b3 {[%emt 0:00:30]} b6 {
[%emt 0:01:30]} 4. g3 {[%emt 0:00:25]} Bb7 {[%emt 0:00:17]} 5. Bg2 {[%emt 0:00:
00]} e6 {[%emt 0:01:12]} 6. O-O {[%emt 0:01:31]} Be7 {[%emt 0:00:43]} 7. Bb2 {
[%emt 0:01:04]} d6 {[%emt 0:00:40] A30: Symmetrical English: Double Fianchetto
and Hedgehog.} 8. d4 {[%emt 0:02:59][%cal Yd4d5]} Nbd7 {[%emt 0:01:16]} 9. Nc3
{[%emt 0:03:05][%cal Ye2e4]} a6 {[%emt 0:00:53] White is slightly better.} 10.
e3 {[%emt 0:08:29]} Qc7 {[%emt 0:01:40]} 11. Rc1 {[%emt 0:01:31] [#]} Rc8 $146
{[%emt 0:00:20]} ({Predecessor:} 11... O-O 12. d5 exd5 13. cxd5 b5 14. Nh4 Rfe8
15. e4 Bf8 16. Re1 g6 17. Nb1 Bg7 18. Nd2 Rac8 19. Ba1 Ne5 {½-½ (59) Stark,L
(2386)-Thavandiran,S (2420) Chess.com INT 2022}) 12. Qe2 {[%emt 0:02:12][%cal
Yd4d5]} Qb8 {[%emt 0:00:31]} 13. e4 {[%emt 0:08:45]} Qa8 {[%emt 0:01:22]} (
13... cxd4 $14 14. Nxd4 h5) 14. d5 $1 $16 {[%emt 0:03:15] [#] aiming for dxe6.}
e5 {[%emt 0:01:42]} 15. Nh4 {[%emt 0:03:23]} g6 {[%emt 0:03:46]} 16. f4 {
[%emt 0:08:29] White is more active.} Nh5 $2 {[%emt 0:04:11] A mistake that
costs the game.} (16... O-O $16 17. Nf3 Qb8 18. fxe5 Nxe5) 17. Nf3 {[%emt 0:00:
00]} Bf6 $2 {[%emt 0:08:24] [#]} (17... Qb8 {was worth a try.} 18. Bh3 Rd8) 18.
Bh3 $18 {[%emt 0:05:41] White is clearly winning.} Rc7 {[%emt 0:04:57]} 19. Na4
{[%emt 0:04:18]} Qd8 {[%emt 0:02:18]} 20. Bxd7+ {[%emt 0:01:38]} Rxd7 {[%emt 0:
00:00]} 21. fxe5 {[%emt 0:00:17]} dxe5 {[%emt 0:01:42]} 22. Nxe5 {[%emt 0:00:
00]} Bxe5 {[%emt 0:08:51]} 23. Bxe5 {[%emt 0:00:09]} O-O {[%emt 0:00:16]} 24.
Ba1 {[%emt 0:07:16]} f6 {[%emt 0:00:45]} 25. Rf2 {[%emt 0:06:59]} Rdf7 {
[%emt 0:03:00]} 26. Rcf1 {[%emt 0:01:29]} Qd6 {[%emt 0:01:44]} 27. e5 {[%emt 0:
00:00]} fxe5 {[%emt 0:21:01]} 28. Rxf7 {[%emt 0:00:27]} Rxf7 {[%emt 0:00:17]}
29. Rxf7 {[%emt 0:00:11]} Kxf7 {[%emt 0:00:10]} 30. Qxe5 {[%emt 0:00:11]
Weighted Error Value: White=0.07 (flawless) /Black=0.37} ({Weaker is} 30. Bxe5
Qe7 31. Qf2+ Kg8 $18) 1-0

[Event "44th Chess Olympiad Open 2022"]
[Site "Chennai"]
[Date "2022.08.03"]
[Round "6.60"]
[White "Florentiades, Michalis"]
[Black "Njoroge, Martin"]
[Result "0-1"]
[WhiteElo "1974"]
[BlackElo "1973"]
[Annotator "NA RC"]
[PlyCount "108"]
[EventDate "2022.??.??"]
[TimeControl "60"]

1. e4 {[%emt 0:00:12]} c5 {[%emt 0:03:32]} 2. Nc3 {[%emt 0:01:00]} Nc6 {
[%emt 0:07:52]} 3. g3 {[%emt 0:00:15]} g6 {[%emt 0:00:49]} 4. Bg2 {[%emt 0:00:
00]} Bg7 {[%emt 0:00:05]} 5. d3 {[%emt 0:00:11]} e6 {[%emt 0:00:12]} 6. Be3 {
[%emt 0:00:51]} d6 {[%emt 0:00:32]} 7. Qd2 {[%emt 0:00:36]} Rb8 {[%emt 0:03:46]
} 8. Nge2 {[%emt 0:08:46]} h6 {[%emt 0:03:22]} 9. O-O {[%emt 0:03:19]} Nd4 {
[%emt 0:03:08]} 10. f4 {[%emt 0:07:09]} Ne7 {[%emt 0:03:50]} 11. Nd1 {[%emt 0:
00:00]} O-O {[%emt 0:02:21]} 12. Nc1 {[%emt 0:06:44]} Kh7 {[%emt 0:01:37]} 13.
c3 {[%emt 0:04:28]} Ndc6 {[%emt 0:03:00]} 14. Ne2 {[%emt 0:04:13]} f5 {[%emt 0:
00:00]} 15. Bf2 {[%emt 0:07:23]} Qc7 {[%emt 0:06:24]} 16. Ne3 {[%emt 0:01:55]}
Bd7 {[%emt 0:03:54]} 17. Rad1 {[%emt 0:03:03]} Rbd8 {[%emt 0:01:49]} 18. Rfe1 {
[%emt 0:04:01]} b6 {[%emt 0:09:02]} 19. exf5 {[%emt 0:03:52]} Nxf5 {[%emt 0:00:
00]} 20. Nxf5 {[%emt 0:00:29]} exf5 {[%emt 0:00:31]} 21. d4 {[%emt 0:00:56]}
Bc8 {[%emt 0:01:16]} 22. Qc2 {[%emt 0:10:03]} Ne7 {[%emt 0:02:08]} 23. dxc5 {
[%emt 0:02:56]} dxc5 {[%emt 0:05:20]} 24. Nc1 {[%emt 0:04:15]} Rxd1 {[%emt 0:
00:00]} 25. Qxd1 {[%emt 0:02:06]} Rd8 {[%emt 0:06:25]} 26. Qe2 {[%emt 0:00:33]}
Ng8 {[%emt 0:00:33]} 27. Rd1 {[%emt 0:01:22]} Ba6 {[%emt 0:03:11]} 28. Qe1 {
[%emt 0:00:27]} Nf6 {[%emt 0:00:37]} 29. Nb3 {[%emt 0:03:28]} Rxd1 {[%emt 0:00:
00]} 30. Qxd1 {[%emt 0:00:06]} Bb7 {[%emt 0:00:11]} 31. Nd2 {[%emt 0:02:16]}
Bxg2 {[%emt 0:00:41]} 32. Kxg2 {[%emt 0:00:06]} Qd7 {[%emt 0:00:45]} 33. Qe2 {
[%emt 0:09:30]} Qd5+ {[%emt 0:02:22]} 34. Nf3 {[%emt 0:00:23]} Qxa2 {[%emt 0:
00:00]} 35. h3 {[%emt 0:01:37]} Ne4 {[%emt 0:00:48]} 36. g4 {[%emt 0:01:13]}
Nxc3 {[%emt 0:01:12]} 37. Qe8 {[%emt 0:01:13]} Nd1 {[%emt 0:03:42]} 38. gxf5 {
[%emt 0:00:47]} gxf5 {[%emt 0:00:53]} 39. Qd7 {[%emt 0:01:25]} Nxf2 {[%emt 0:
00:00]} 40. Qxf5+ {[%emt 0:00:20]} Kg8 {[%emt 0:01:39]} 41. Qc8+ {[%emt 0:00:
00]} Bf8 {[%emt 0:30:38]} 42. Kxf2 {[%emt 0:00:00]} Qxb2+ {[%emt 0:00:00]} 43.
Kg3 {[%emt 0:00:00]} Qg7+ {[%emt 0:00:00]} 44. Kh2 {[%emt 0:00:00]} Qf7 {
[%emt 0:00:00]} 45. Qg4+ {[%emt 0:00:00]} Kh7 {[%emt 0:00:00]} 46. Ne5 {
[%emt 0:00:00]} Qa2+ {[%emt 0:00:00]} 47. Kh1 {[%emt 0:00:00]} Qb1+ {[%emt 0:
00:00]} 48. Kh2 {[%emt 0:00:00]} Bg7 {[%emt 0:00:00]} 49. Nf3 {[%emt 0:00:00]}
Qc2+ {[%emt 0:00:00]} 50. Kh1 {[%emt 0:00:00]} Qe4 {[%emt 0:00:00]} 51. Kh2 {
[%emt 0:00:00]} c4 {[%emt 0:00:00]} 52. h4 {[%emt 0:00:00]} c3 {[%emt 0:00:00]}
53. Kh3 {[%emt 0:00:00]} c2 {[%emt 0:00:00]} 54. Qg2 {[%emt 0:00:00]} Qf5+ {
[%emt 0:00:00]} 0-1

[Event "44th Chess Olympiad Open 2022"]
[Site "Chennai"]
[Date "2022.08.03"]
[Round "6.60"]
[White "Oluka Robert Mcligeyo"]
[Black "Antoniou, Rafail"]
[Result "0-1"]
[WhiteElo "1823"]
[BlackElo "1817"]
[Annotator "NA RC"]
[PlyCount "110"]
[EventDate "2022.??.??"]
[TimeControl "60"]

1. e4 {[%emt 0:00:36]} c5 {[%emt 0:00:23]} 2. Nf3 {[%emt 0:00:49]} e6 {[%emt 0:
00:00]} 3. d4 {[%emt 0:01:00]} cxd4 {[%emt 0:00:05]} 4. Nxd4 {[%emt 0:00:08]}
Nf6 {[%emt 0:01:16]} 5. Nc3 {[%emt 0:00:57]} Nc6 {[%emt 0:00:48]} 6. Nxc6 {
[%emt 0:03:04]} bxc6 {[%emt 0:00:05]} 7. e5 {[%emt 0:00:08]} Nd5 {[%emt 0:00:
00]} 8. Ne4 {[%emt 0:01:27]} Qc7 {[%emt 0:01:59]} 9. f4 {[%emt 0:00:10]} Qb6 {
[%emt 0:00:03]} 10. c4 {[%emt 0:01:21]} Bb4+ {[%emt 0:01:02]} 11. Ke2 {[%emt 0:
00:00]} f5 {[%emt 0:02:34]} 12. Nf2 {[%emt 0:00:09]} Ba6 {[%emt 0:02:56]} 13.
Kf3 {[%emt 0:00:55]} Ne7 {[%emt 0:03:37]} 14. Qa4 {[%emt 0:01:04]} Bb7 {
[%emt 0:31:20]} 15. a3 {[%emt 0:02:29]} Bc5 {[%emt 0:02:30]} 16. Nd3 {[%emt 0:
00:00]} Bd4 {[%emt 0:00:50]} 17. Bd2 {[%emt 0:04:03]} c5+ {[%emt 0:02:48]} 18.
Kg3 {[%emt 0:00:08]} a5 {[%emt 0:04:02]} 19. Be2 {[%emt 0:06:34]} Be4 {[%emt 0:
00:00]} 20. Bc3 {[%emt 0:24:22]} Qc6 {[%emt 0:06:47]} 21. Qxc6 {[%emt 0:01:49]}
Nxc6 {[%emt 0:00:09]} 22. Nf2 {[%emt 0:11:05]} Bc2 {[%emt 0:05:11]} 23. Bf3 {
[%emt 0:01:34]} Rb8 {[%emt 0:01:48]} 24. Bxc6 {[%emt 0:01:41]} dxc6 {[%emt 0:
00:00]} 25. Rac1 {[%emt 0:02:59]} Bb3 {[%emt 0:02:06]} 26. Bxd4 {[%emt 0:10:41]
} cxd4 {[%emt 0:00:02]} 27. Nd3 {[%emt 0:00:14]} Ke7 {[%emt 0:01:13]} 28. Rhf1
{[%emt 0:00:48]} c5 {[%emt 0:03:37]} 29. Nxc5 {[%emt 0:03:33]} Rhc8 {[%emt 0:
00:00]} 30. Nxb3 {[%emt 0:04:04]} Rxb3+ {[%emt 0:00:03]} 31. Rf3 {[%emt 0:00:
00]} Rxb2 {[%emt 0:01:17]} 32. Rd3 {[%emt 0:00:50]} Ra2 {[%emt 0:00:20]} 33.
Rb3 {[%emt 0:02:40]} Rc7 {[%emt 0:02:12]} 34. c5 {[%emt 0:02:00]} a4 {[%emt 0:
00:00]} 35. Rd3 {[%emt 0:00:07]} Rb2 {[%emt 0:01:59]} 36. Rc4 {[%emt 0:00:42]}
Rb3 {[%emt 0:00:15]} 37. Rcxd4 {[%emt 0:00:53]} Rxd3+ {[%emt 0:00:14]} 38. Rxd3
{[%emt 0:00:48]} Rxc5 {[%emt 0:00:03]} 39. Kh4 {[%emt 0:01:39]} Rc2 {[%emt 0:
00:00]} 40. Rg3 {[%emt 0:02:16]} Kf7 {[%emt 0:07:01]} 41. Kh3 {[%emt 0:31:23]}
Rf2 {[%emt 0:36:00]} 42. Rf3 {[%emt 0:00:00]} Rb2 {[%emt 0:00:00]} 43. g4 {
[%emt 0:00:00]} Rb3 {[%emt 0:00:00]} 44. Kg3 {[%emt 0:00:00]} fxg4 {[%emt 0:00:
00]} 45. Kxg4 {[%emt 0:00:00]} h5+ {[%emt 0:00:00]} 46. Kg3 {[%emt 0:00:00]}
Kg6 {[%emt 0:00:00]} 47. Kf2 {[%emt 0:00:00]} Rxf3+ {[%emt 0:00:00]} 48. Kxf3 {
[%emt 0:00:00]} Kf5 {[%emt 0:00:00]} 49. Kg3 {[%emt 0:05:50]} g5 {[%emt 0:00:
00]} 50. fxg5 {[%emt 0:00:11]} Kxg5 {[%emt 0:00:00]} 51. h3 {[%emt 0:00:55]}
h4+ {[%emt 0:00:00]} 52. Kf3 {[%emt 0:00:42]} Kf5 {[%emt 0:00:00]} 53. Ke3 {
[%emt 0:00:18]} Kxe5 {[%emt 0:00:00]} 54. Ke2 {[%emt 0:00:33]} Ke4 {[%emt 0:00:
00]} 55. Kf2 {[%emt 0:00:28]} Kd3 {[%emt 0:00:00]} 0-1

[Event "44th Chess Olympiad Open 2022"]
[Site "Chennai"]
[Date "2022.08.03"]
[Round "6.60"]
[White "Mukoko, Isaac"]
[Black "Damianou, Ioannis"]
[Result "0-1"]
[WhiteElo "1805"]
[BlackElo "2153"]
[Annotator "TA"]
[PlyCount "82"]
[EventDate "2022.??.??"]
[TimeControl "60"]

{[%evp 14,82,22,6,16,21,9,20,21,0,52,55,45,46,47,52,63,53,35,36,32,4,74,68,240,
227,191,221,273,304,280,168,400,340,332,283,277,216,389,173,190,116,210,189,
198,171,188,99,99,88,89,0,0,0,0,0,0,0,0,0,0,0,0,0,0,-29986,-29983,-29989,
-29983,-29990,-29991]} 1. e4 {[%emt 0:00:06]} c5 {[%emt 0:00:08]} 2. c3 {
[%emt 0:01:33]} d5 {[%emt 0:00:08]} 3. exd5 {[%emt 0:00:58]} Qxd5 {[%emt 0:00:
00]} 4. d4 {[%emt 0:00:26]} g6 {[%emt 0:00:37]} 5. Nf3 {[%emt 0:02:23]} Bg7 {
[%emt 0:00:21]} 6. Be2 {[%emt 0:01:51]} cxd4 {[%emt 0:03:19]} 7. cxd4 {[%emt 0:
00:00]} Nf6 {[%emt 0:00:19]} 8. Nc3 {[%emt 0:00:12]} Qa5 {[%emt 0:00:24] 8...
Qd6 is setting a new trend. B06: Modern Defence.} 9. O-O {[%emt 0:01:35]} O-O {
[%emt 0:00:07]} 10. Qb3 {[%emt 0:03:46]} Nc6 {[%emt 0:08:28] The position is
equal.} 11. Be3 {[%emt 0:10:35]} Bf5 {[%emt 0:19:01]} (11... Ng4 $11) 12. Qxb7
$14 {[%emt 0:12:51] [#]} Rfc8 $146 {[%emt 0:00:07]} ({Predecessor:} 12... Nb4
13. Qb5 Qxb5 14. Bxb5 a6 15. Bc4 Nc2 16. Rac1 Nxe3 17. fxe3 Bh6 18. Rce1 Ng4 {
½-½ (32) Comte,F (1750)-Le Roy,B (1890) France 1998}) 13. Qa6 {[%emt 0:00:45]
} Qd8 {[%emt 0:03:02]} 14. Rac1 {[%emt 0:09:07]} Rab8 {[%emt 0:21:28]} 15. Qa3
{[%emt 0:08:51]} Nb4 {[%emt 0:04:28]} 16. Bf4 {[%emt 0:12:08]} ({Avoid the trap
} 16. Qxa7 $2 Ra8 17. Qb7 Rcb8 18. Qxa8 Rxa8 $19) 16... Rb6 {[%emt 0:09:30]}
17. Nb5 {[%emt 0:08:06]} Nc2 {[%emt 0:06:37]} (17... Nbd5 $11 {remains equal.}
18. Bd2 a6) 18. Qxa7 $16 {[%emt 0:04:42]} Nd5 {[%emt 0:02:58] [#] Inhibits Bc7.
} (18... Re6 $1 $14 19. Be5 Rec6) 19. Bc7 $1 $18 {[%emt 0:07:08]} Rxc7 {
[%emt 0:08:02]} 20. Nxc7 {[%emt 0:00:16]} Rxb2 {[%emt 0:02:47]} 21. Nxd5 {
[%emt 0:01:39]} Qxd5 {[%emt 0:00:05]} 22. a4 {[%emt 0:03:35]} Bxd4 $2 {[%emt 0:
06:39]} (22... Qe4) 23. Nxd4 {[%emt 0:01:03]} Nxd4 {[%emt 0:00:03]} 24. Bc4 {
[%emt 0:00:34]} Qe4 {[%emt 0:00:49][%cal Yf5h3]} 25. Rc3 {[%emt 0:02:44]
Against Bh3} e6 $2 {[%emt 0:02:32]} (25... Rb4) 26. Re3 {[%emt 0:01:07]} (26.
Qc7 $142) 26... Qf4 {[%emt 0:00:05]} 27. Bb5 {[%emt 0:03:07]} (27. Bd3 $18)
27... Rxf2 {[%emt 0:00:28]} 28. Rxf2 {[%emt 0:01:15]} Qxe3 {[%emt 0:00:05]} 29.
Qb8+ {[%emt 0:00:14]} Kg7 {[%emt 0:00:05]} 30. Qg3 {[%emt 0:00:12]} (30. Qf4
$18 Qe1+ 31. Rf1) 30... Qc1+ $16 {[%emt 0:01:38]} 31. Rf1 {[%emt 0:00:13]} Qc5
{[%emt 0:00:04] ...Ne2+ is the strong threat.} 32. Kh1 {[%emt 0:00:30]} (32.
Qf2 $16) 32... Nxb5 $11 {[%emt 0:00:45]} 33. axb5 {[%emt 0:00:43]} Qxb5 {
[%emt 0:00:05][%cal Rb5f1] Endgame KQR-KQB} 34. Qc3+ {[%emt 0:00:11]} f6 {
[%emt 0:01:35][%cal Rb5f1]} 35. Ra1 {[%emt 0:00:11]} g5 {[%emt 0:00:22]} 36. h3
{[%emt 0:00:52]} Qb6 {[%emt 0:00:35]} 37. Qc8 {[%emt 0:00:54]} Be4 {[%emt 0:00:
35][%cal Ye4g2] Threatens to win with ...Bxg2+!} 38. Qd7+ {[%emt 0:00:00]} Kh6
{[%emt 0:00:25][%cal Ye4g2] White must now prevent ...Bxg2+!} 39. Ra7 $2 {
[%emt 0:00:57]} (39. Rf1 $11 Qb2 40. Rg1) 39... Qf2 {[%emt 0:00:35][%csl Ge4]
[%cal Rf2g2] Black mates.} 40. Qg7+ {[%emt 0:01:34]} Kh5 {[%emt 0:00:05][%csl
Ge4][%cal Rf2g2]} 41. Qf7+ {[%emt 0:30:37]} Kh4 {[%emt 0:03:54] Black used his
chance. Weighted Error Value: White=0.53/ Black=0.30} 0-1